bitfinex-derivatives/quotes_BTCF0:USTF0_20250506
["timestamp","ask_amount","ask_price","bid_price","bid_amount"]
[1746520500403,0.19110736,94205.0,94204.0,2.293737]
[1746520501310,0.19110736,94205.0,94204.0,1.932937]
[1746520501613,0.19110736,94205.0,94204.0,2.293737]
[1746520502416,0.19110736,94205.0,94204.0,2.253737]
[1746520503216,0.25500736,94205.0,94204.0,2.253737]
[1746520505617,0.0664,94205.0,94204.0,2.253737]
[1746520507415,0.0025,94205.0,94204.0,2.253737]
[1746520507917,0.0025,94205.0,94204.0,2.293737]
[1746520511624,0.0015,94205.0,94204.0,2.293737]
[1746520512722,0.033,94205.0,94204.0,2.293737]
[1746520516419,0.033,94205.0,94204.0,2.261937]
[1746520516617,0.0956,94205.0,94204.0,2.221937]
[1746520526734,0.0956,94205.0,94204.0,2.252637]
[1746520527830,0.0638,94205.0,94204.0,2.252637]
[1746520529238,0.0638,94205.0,94204.0,1.891837]
[1746520529437,0.0638,94205.0,94204.0,2.252637]
[1746520543527,0.0015,94205.0,94204.0,2.252637]
[1746520543827,0.0015,94205.0,94204.0,0.721937]
[1746520544031,0.0625,94205.0,94204.0,0.721937]
[1746520544235,0.0929,94205.0,94204.0,0.603937]
[1746520547027,0.0929,94205.0,94204.0,0.573137]
[1746520547738,0.0929,94205.0,94204.0,0.603237]
[1746520553134,0.0625,94205.0,94204.0,0.633637]
[1746520554638,0.25097272,94205.0,94204.0,0.633637]
[1746520560756,0.0625,94205.0,94204.0,0.633637]
[1746520561853,0.0625,94205.0,94204.0,0.272837]
[1746520570664,0.0015,94205.0,94204.0,0.272837]
[1746520570859,0.0015,94205.0,94204.0,0.302837]
[1746520571166,0.0015,94205.0,94204.0,1.920837]
[1746520574571,0.0015,94205.0,94204.0,2.281637]
[1746520577770,0.0015,94205.0,94204.0,2.283637]
[1746520580980,0.12935044,94219.0,94206.0,0.0530827]
[1746520581170,0.07046044,94219.0,94218.0,0.5731055]
[1746520581365,0.07046044,94219.0,94218.0,0.6331055]
[1746520581570,0.07046044,94219.0,94218.0,2.1331055]
[1746520581975,0.07046044,94219.0,94218.0,2.1959055]
[1746520582172,0.07046044,94219.0,94218.0,2.3139055]
[1746520583081,0.0319,94225.0,94224.0,0.2122919]
[1746520584080,0.0319,94225.0,94224.0,0.4229919]
[1746520584476,0.0319,94225.0,94224.0,0.44161388]
[1746520585584,0.0349,94225.0,94224.0,0.44161388]
[1746520588376,0.0319,94225.0,94224.0,0.44161388]
[1746520591381,0.001,94236.0,94235.0,0.2122672]
[1746520592684,0.003,94236.0,94235.0,0.2122672]
[1746520593074,0.003,94236.0,94235.0,0.22017272]
[1746520593275,0.0657,94236.0,94235.0,0.22017272]
[1746520594489,0.0657,94236.0,94235.0,0.25087272]
[1746520596086,0.0647,94236.0,94235.0,0.25087272]
[1746520597182,0.0647,94236.0,94235.0,0.28207272]
[1746520602576,0.0647,94236.0,94235.0,0.31207272]
[1746520603284,0.0647,94236.0,94235.0,0.39887272]
[1746520603492,0.0335,94236.0,94235.0,0.43077272]
[1746520604186,0.002,94236.0,94235.0,0.43077272]
[1746520604495,0.002,94236.0,94235.0,1.93077272]
[1746520605183,0.002,94236.0,94235.0,2.43077272]
[1746520605384,0.0021977,94236.0,94235.0,2.43077272]
[1746520606788,0.0011977,94236.0,94235.0,2.43077272]
[1746520608186,0.00303293,94238.0,94237.0,0.2122626]
[1746520608494,0.0307,94253.0,94239.0,0.2122581]
[1746520608993,0.0307,94253.0,94239.0,1.7758581]
[1746520609291,0.0307,94253.0,94239.0,1.8938581]
[1746520610685,0.0307,94253.0,94239.0,1.9269581]
[1746520610883,0.0025,94240.0,94239.0,1.9269581]
[1746520611693,0.0025,94240.0,94239.0,2.2877581]
[1746520614892,0.0025,94240.0,94239.0,2.3277581]
[1746520616196,0.0025,94240.0,94239.0,2.2877581]
[1746520617295,0.0025,94240.0,94239.0,2.1697581]
[1746520617905,0.0025,94240.0,94239.0,2.1366581]
[1746520619601,0.0025,94240.0,94239.0,0.6366581]
[1746520627006,0.0025,94240.0,94239.0,0.2758581]
[1746520627207,0.79966791,94240.0,94239.0,0.2122581]
[1746520628307,0.86216791,94240.0,94239.0,0.2122581]
[1746520632904,0.2122649,94236.0,94235.0,0.22017122]
[1746520633104,0.3302649,94236.0,94235.0,0.2122657]
[1746520633306,0.43638091,94236.0,94235.0,0.2122657]
[1746520633801,0.50128091,94236.0,94235.0,0.2122657]
[1746520634411,0.86208091,94236.0,94235.0,0.2122657]
[1746520635710,0.86408091,94236.0,94235.0,0.2122657]
[1746520637314,0.86408091,94236.0,94235.0,0.22035249]
[1746520645619,0.7579649,94236.0,94235.0,0.22035249]
[1746520645919,0.86408091,94236.0,94235.0,0.22035249]
[1746520647914,0.86408091,94236.0,94235.0,0.25045249]
[1746520648420,0.50328091,94236.0,94235.0,0.25045249]
[1746520648618,0.86408091,94236.0,94235.0,0.25045249]
[1746520650819,0.50328091,94236.0,94235.0,0.25045249]
[1746520651027,0.86408091,94236.0,94235.0,0.25045249]
[1746520654020,0.7579649,94236.0,94235.0,0.25045249]
[1746520654222,0.7579649,94236.0,94235.0,0.28135249]
[1746520656322,0.6399649,94236.0,94235.0,0.28135249]
[1746520656521,0.6399649,94236.0,94235.0,0.2732657]
[1746520656822,0.6076649,94236.0,94235.0,0.2732657]
[1746520657821,0.5750649,94236.0,94235.0,0.2732657]
[1746520658918,0.2142649,94236.0,94235.0,0.2732657]
[1746520659124,0.5750649,94236.0,94235.0,0.2732657]
[1746520662022,0.5750649,94236.0,94235.0,0.28140456]
[1746520663022,0.5750649,94236.0,94235.0,0.2732657]
[1746520666316,0.6423449,94236.0,94235.0,0.2732657]
[1746520671230,0.6423449,94236.0,94235.0,0.2813719]
[1746520671930,0.5750649,94236.0,94235.0,0.2813719]
[1746520672231,0.6423449,94236.0,94235.0,0.2813719]
[1746520678231,0.5750649,94236.0,94235.0,0.2813719]
[1746520684230,0.6069649,94236.0,94235.0,0.2813719]
[1746520687442,0.2461649,94236.0,94235.0,0.2813719]
[1746520687640,0.6069649,94236.0,94235.0,0.2813719]
[1746520688043,0.5750649,94236.0,94235.0,0.2813719]
[1746520706857,0.2142649,94236.0,94235.0,0.2813719]
[1746520707057,0.5750649,94236.0,94235.0,0.2813719]
[1746520719379,0.3628,94236.0,94235.0,0.2813719]
[1746520720363,0.3628,94236.0,94235.0,0.3993719]
[1746520724169,0.002,94236.0,94235.0,0.3993719]
[1746520726955,0.002,94236.0,94235.0,0.5054879]
[1746520728770,0.0015,94240.0,94239.0,0.2122581]
[1746520729170,0.0015,94240.0,94239.0,0.3302581]
[1746520729871,0.0015,94240.0,94239.0,0.3942581]
[1746520731163,0.0025,94240.0,94239.0,0.3942581]
[1746520734975,0.0015,94240.0,94239.0,0.3942581]
[1746520739568,0.0005,94240.0,94239.0,0.3942581]
[1746520742877,0.0005,94240.0,94239.0,1.8942581]
[1746520756292,0.0005,94240.0,94239.0,1.9042581]
[1746520761290,0.0631,94256.0,94255.0,0.2122221]
[1746520762282,0.0631,94256.0,94255.0,0.2431221]
[1746520762685,0.0671,94256.0,94255.0,0.2742221]
[1746520763792,0.004,94256.0,94255.0,0.2742221]
[1746520765385,0.004,94256.0,94255.0,0.28920709]
[1746520765585,0.0354,94256.0,94255.0,0.28920709]
[1746520765792,0.004,94256.0,94255.0,0.28920709]
[1746520766295,0.004,94256.0,94255.0,0.40720709]
[1746520766591,0.0314,94262.0,94261.0,0.2122086]
[1746520766896,0.0015,94275.0,94255.0,0.24804019]
[1746520766897,0.0321,94274.0,94265.0,0.2121996]
[1746520767090,0.3083806,94274.0,94265.0,0.2121996]
[1746520767992,0.3083806,94274.0,94265.0,0.2739996]
[1746520768188,0.0962,94274.0,94265.0,0.2739996]
[1746520769495,0.3083805,94274.0,94265.0,0.2739996]
[1746520769693,0.2121822,94273.0,94265.0,0.2739996]
[1746520770195,0.0662,94272.0,94265.0,0.2739996]
[1746520770491,0.2783847,94272.0,94265.0,0.2739996]
[1746520770796,0.0662,94272.0,94265.0,0.2739996]
[1746520770991,0.2783847,94272.0,94265.0,0.2739996]
[1746520771191,0.0662,94272.0,94265.0,0.2739996]
[1746520773298,0.2783839,94272.0,94265.0,0.2739996]
[1746520773599,0.0662,94272.0,94265.0,0.2739996]
[1746520775597,0.2121861,94271.0,94265.0,0.2739996]
[1746520775791,0.0662,94272.0,94265.0,0.2739996]
[1746520775984,0.063,94270.0,94265.0,0.2739996]
[1746520776795,0.2751886,94270.0,94265.0,0.2739996]
[1746520776998,0.063,94270.0,94265.0,0.2739996]
[1746520778395,0.2751889,94270.0,94265.0,0.2739996]
[1746520781101,0.2121911,94269.0,94265.0,0.2739996]
[1746520781500,0.0613,94268.0,94265.0,0.2739996]
[1746520781700,0.0314,94267.0,94265.0,0.2739996]
[1746520782201,0.0612,94266.0,94265.0,0.2739996]
[1746520791495,0.2733973,94266.0,94265.0,0.0317]
[1746520791702,0.2122199,94257.0,94256.0,0.2122186]
[1746520791908,0.5730199,94257.0,94256.0,0.2436186]
[1746520792208,0.7839199,94257.0,94256.0,0.2436186]
[1746520792397,0.7839199,94257.0,94256.0,0.2122186]
[1746520793307,0.7839199,94257.0,94256.0,0.2142186]
[1746520794597,0.7839199,94257.0,94256.0,0.2446186]
[1746520796107,0.6659199,94257.0,94256.0,0.2446186]
[1746520796303,0.6659199,94257.0,94256.0,0.002]
[1746520796511,0.2122401,94248.0,94247.0,0.2652985]
[1746520796706,0.2653305,94238.0,94237.0,0.2122626]
[1746520796905,0.5730649,94238.0,94237.0,0.2573825]
[1746520797300,0.6380649,94238.0,94237.0,0.2573825]
[1746520797703,0.6662649,94238.0,94237.0,0.2573825]
[1746520798307,0.6662649,94238.0,94237.0,0.2426626]
[1746520800500,0.6662649,94238.0,94237.0,0.25729738]
[1746520806506,0.6662649,94238.0,94237.0,0.29019738]
[1746520810499,0.6662649,94238.0,94237.0,0.0304]
[1746520810704,0.6662649,94238.0,94237.0,0.2426626]
[1746520811107,0.7842649,94238.0,94237.0,0.2426626]
[1746520811308,0.7842649,94238.0,94237.0,0.0304]
[1746520812301,0.7842649,94238.0,94230.0,0.0326]
[1746520812302,0.2122762,94231.0,94230.0,0.0326]
[1746520812507,0.0530709,94228.0,94224.0,0.2653592]
[1746520812712,0.5730897,94225.0,94224.0,0.2960592]
[1746520813108,0.5730897,94225.0,94224.0,0.0307]
[1746520813408,0.5710897,94225.0,94224.0,0.2429919]
[1746520814117,0.6890897,94225.0,94224.0,0.2429919]
[1746520814317,0.6890897,94225.0,94224.0,0.2459919]
[1746520815320,0.5710897,94225.0,94224.0,0.2459919]
[1746520816417,0.5710897,94225.0,94224.0,0.2429919]
[1746520821821,0.5730897,94225.0,94224.0,0.2429919]
[1746520827522,0.3608,94225.0,94224.0,0.2429919]
[1746520828120,0.2788604,94238.0,94237.0,0.2122626]
[1746520829018,0.2788604,94238.0,94237.0,0.2734626]
[1746520829419,0.2828604,94238.0,94237.0,0.2734626]
[1746520831317,0.2162604,94238.0,94237.0,0.2734626]
[1746520833026,0.43147571,94238.0,94237.0,0.2734626]
[1746520842138,0.79227571,94238.0,94237.0,0.2734626]
[1746520844535,0.43147571,94238.0,94237.0,0.2734626]
[1746520844739,0.79227571,94238.0,94237.0,0.2734626]
[1746520848630,0.5770604,94238.0,94237.0,0.2734626]
[1746520849337,0.2162604,94238.0,94237.0,0.2734626]
[1746520849526,0.5770604,94238.0,94237.0,0.2734626]
[1746520853733,0.2162604,94238.0,94237.0,0.2734626]
[1746520853938,0.5770604,94238.0,94237.0,0.2734626]
[1746520854739,0.2162604,94238.0,94237.0,0.2734626]
[1746520854944,0.5770604,94238.0,94237.0,0.2734626]
[1746520857846,0.2162604,94238.0,94237.0,0.2734626]
[1746520858047,0.6103604,94238.0,94237.0,0.2734626]
[1746520865741,0.2495604,94238.0,94237.0,0.2734626]
[1746520865939,0.6103604,94238.0,94237.0,0.2734626]
[1746520874260,0.5770604,94238.0,94237.0,0.2734626]
[1746520875057,0.6084604,94238.0,94237.0,0.2734626]
[1746520898273,0.6084604,94238.0,94223.0,0.0530734]
[1746520898274,0.2122942,94223.0,94220.0,0.02629796]
[1746520898472,0.5730942,94223.0,94222.0,0.21388838]
[1746520899066,0.5730942,94223.0,94222.0,0.33188838]
[1746520899472,0.5730942,94223.0,94222.0,0.39438838]
[1746520914594,0.21545754,94226.0,94225.0,0.2122897]
[1746520915184,0.21545754,94226.0,94225.0,0.3302897]
[1746520915384,0.3608,94238.0,94226.0,0.2122874]
[1746520915385,0.21545754,94227.0,94226.0,0.2122874]
[1746520915585,0.21545754,94227.0,94226.0,0.2768874]
[1746520916193,0.21545754,94227.0,94226.0,0.3948874]
[1746520917892,0.2122672,94235.0,94234.0,0.2122694]
[1746520918286,0.2122672,94235.0,94234.0,0.3302694]
[1746520918693,0.2122672,94235.0,94234.0,0.3948694]
[1746520919095,0.2152672,94235.0,94234.0,0.3948694]
[1746520920995,0.2152672,94235.0,94234.0,0.3620694]
[1746520921299,0.2475672,94235.0,94234.0,0.2440694]
[1746520925187,0.2475672,94235.0,94234.0,0.2749694]
[1746520933902,0.2802672,94235.0,94234.0,0.2749694]
[1746520942510,0.003,94235.0,94234.0,0.2749694]
[1746520942815,0.2152672,94235.0,94234.0,0.3053694]
[1746520943205,0.2152672,94235.0,94234.0,0.4233694]
[1746520944812,0.003,94235.0,94234.0,0.4233694]
[1746520945012,0.2152672,94235.0,94234.0,0.4233694]
[1746520946410,0.003,94235.0,94234.0,0.4233694]
[1746520952815,0.19140081,94235.0,94234.0,0.4233694]
[1746520954714,0.19140081,94235.0,94234.0,1.9233694]
[1746520956824,0.003,94235.0,94234.0,1.9233694]
[1746520965625,0.003,94235.0,94234.0,0.4233694]
[1746520981534,0.003,94235.0,94234.0,1.9233694]
[1746520995745,0.19140081,94235.0,94234.0,1.9233694]
[1746520998345,0.003,94235.0,94234.0,1.9233694]
[1746520999850,0.003,94235.0,94234.0,0.4233694]
[1746521001448,0.003,94235.0,94234.0,1.9233694]
[1746521002551,0.003,94235.0,94234.0,2.2841694]
[1746521003541,0.003,94235.0,94234.0,2.39028939]
[1746521003742,0.15291465,94237.0,94236.0,0.2122649]
[1746521003947,0.242639,94244.0,94243.0,0.2122491]
[1746521004147,0.242639,94244.0,94243.0,0.2822491]
[1746521004346,0.242639,94244.0,94243.0,1.7822491]
[1746521004846,0.242639,94244.0,94243.0,1.8466491]
[1746521005250,0.242639,94244.0,94243.0,1.9646491]
[1746521005846,0.247639,94244.0,94243.0,1.9646491]
[1746521006244,0.242639,94244.0,94243.0,1.9646491]
[1746521006444,0.243639,94244.0,94243.0,1.9646491]
[1746521008954,0.0327,94256.0,94255.0,0.2122221]
[1746521009849,0.0327,94256.0,94255.0,0.2743221]
[1746521010044,0.001,94266.0,94265.0,0.2121996]
[1746521010455,0.0317,94266.0,94265.0,0.2121996]
[1746521010840,0.0317,94266.0,94265.0,0.2743996]
[1746521011647,0.0367,94266.0,94265.0,0.2743996]
[1746521012757,0.0357,94266.0,94265.0,0.2743996]
[1746521012960,0.0357,94266.0,94265.0,0.30882808]
[1746521015559,0.0357,94266.0,94265.0,1.80882808]
[1746521018157,0.0337,94266.0,94265.0,1.80882808]
[1746521018553,0.0337,94266.0,94265.0,2.16962808]
[1746521037371,0.0337,94266.0,94265.0,2.17962808]
[1746521038070,0.0337,94266.0,94265.0,2.16962808]
[1746521055786,0.0337,94266.0,94265.0,1.80882808]
[1746521056084,0.0337,94266.0,94265.0,2.16962808]
[1746521061786,0.0337,94266.0,94265.0,1.80882808]
[1746521061989,0.0337,94266.0,94265.0,2.16962808]
[1746521064493,0.0337,94266.0,94265.0,1.80882808]
[1746521064696,0.0337,94266.0,94265.0,2.16962808]
[1746521065098,0.0337,94266.0,94265.0,1.80882808]
[1746521065290,0.0337,94266.0,94265.0,2.16962808]
[1746521067491,0.17184514,94320.0,94265.0,2.16962808]
[1746521067696,0.07192895,94320.0,94319.0,0.2120781]
[1746521067894,0.0304,94338.0,94325.0,0.2120646]
[1746521068090,0.0304,94338.0,94325.0,0.6120646]
[1746521068302,0.2120518,94331.0,94325.0,0.64224914]
[1746521068507,0.0658,94334.0,94325.0,0.64224914]
[1746521068805,0.0316,94333.0,94325.0,0.65012045]
[1746521069113,0.0621,94333.0,94325.0,0.65012045]
[1746521069307,0.0668,94326.0,94325.0,0.65012045]
[1746521073610,0.001,94326.0,94325.0,0.65012045]
[1746521073815,0.0668,94326.0,94325.0,0.65012045]
[1746521079120,0.0668,94326.0,94325.0,1.37172045]
[1746521079417,0.06668,94326.0,94325.0,1.37172045]
[1746521085224,0.001,94326.0,94325.0,1.37172045]
[1746521085527,0.06668,94326.0,94325.0,1.37172045]
[1746521087128,0.001,94326.0,94325.0,1.37172045]
[1746521087328,0.06668,94326.0,94325.0,1.37172045]
[1746521089836,0.2130624,94326.0,94325.0,1.37172045]
[1746521090131,0.2130624,94326.0,94325.0,1.34153591]
[1746521090132,0.5027584,94326.0,94325.0,1.34153591]
[1746521090321,0.6027584,94326.0,94325.0,0.9336646]
[1746521093532,0.6057584,94326.0,94325.0,0.9336646]
[1746521096227,0.6057584,94326.0,94325.0,0.7216]
[1746521098236,0.6057584,94326.0,94325.0,0.9336646]
[1746521098434,0.6057584,94326.0,94325.0,1.3436646]
[1746521098733,0.6057584,94326.0,94325.0,1.3036646]
[1746521098934,0.6057584,94326.0,94325.0,0.9336646]
[1746521099434,0.6057584,94326.0,94325.0,0.7216]
[1746521101822,0.6057584,94326.0,94325.0,0.9336646]
[1746521103426,0.5057584,94326.0,94325.0,0.9336646]
[1746521103626,0.5400784,94326.0,94325.0,0.9336646]
[1746521103830,0.4997424,94326.0,94325.0,0.9336646]
[1746521104134,0.4997424,94326.0,94325.0,1.2936646]
[1746521106929,0.4997424,94326.0,94325.0,1.3240646]
[1746521107131,0.3817424,94326.0,94325.0,1.3240646]
[1746521107832,0.3817424,94326.0,94325.0,0.9640646]
[1746521108030,0.3817424,94326.0,94325.0,1.3640646]
[1746521108833,0.3817424,94326.0,94325.0,0.9640646]
[1746521109437,0.103,94326.0,94325.0,0.9640646]
[1746521109633,0.2135197,94345.0,94344.0,0.2120219]
[1746521109835,0.06714,94345.0,94344.0,1.2736219]
[1746521110135,0.06714,94345.0,94344.0,1.3916219]
[1746521110337,0.06714,94345.0,94344.0,1.4552219]
[1746521110933,0.07414,94345.0,94344.0,1.4552219]
[1746521111429,0.2861597,94345.0,94344.0,1.4552219]
[1746521111835,0.07414,94345.0,94344.0,1.4552219]
[1746521112437,0.2861597,94345.0,94344.0,1.4552219]
[1746521112639,0.2821597,94345.0,94344.0,1.4552219]
[1746521113135,0.3821597,94345.0,94344.0,0.4788]
[1746521113438,0.3821597,94345.0,94344.0,0.6908219]
[1746521113831,0.4444597,94345.0,94344.0,0.6908219]
[1746521114130,0.5624597,94345.0,94344.0,0.5728219]
[1746521114330,0.5624597,94345.0,94344.0,0.9331219]
[1746521115239,0.5624597,94345.0,94344.0,0.7211]
[1746521115539,0.5624597,94345.0,94344.0,0.9331219]
[1746521118239,0.4444597,94345.0,94344.0,0.9331219]
[1746521119145,0.5624597,94345.0,94344.0,0.9331219]
[1746521119445,0.5309597,94345.0,94344.0,0.9331219]
[1746521120144,0.4129597,94345.0,94344.0,0.9331219]
[1746521128342,0.4129597,94345.0,94344.0,0.9637219]
[1746521129245,0.4129597,94345.0,94344.0,0.6337219]
[1746521130447,0.3821597,94345.0,94344.0,0.6337219]
[1746521130950,0.4131597,94345.0,94344.0,0.6337219]
[1746521131246,0.4131597,94345.0,94344.0,0.2729219]
[1746521131548,0.4131597,94345.0,94344.0,0.6641219]
[1746521133143,0.3475197,94345.0,94344.0,0.6641219]
[1746521133654,0.4131597,94345.0,94344.0,0.6641219]
[1746521135148,0.3475197,94345.0,94344.0,0.6641219]
[1746521135554,0.4131597,94345.0,94344.0,0.6641219]
[1746521135853,0.3475197,94345.0,94344.0,0.6641219]
[1746521136253,0.4131597,94345.0,94344.0,0.6641219]
[1746521136954,0.3475197,94345.0,94344.0,0.6641219]
[1746521137156,0.4131597,94345.0,94344.0,0.6641219]
[1746521137756,0.41334195,94345.0,94344.0,0.6641219]
[1746521138861,0.41334195,94345.0,94344.0,0.3033219]
[1746521139159,0.41334195,94345.0,94344.0,0.6641219]
[1746521142160,0.41334195,94345.0,94344.0,0.3033219]
[1746521142362,0.41334195,94345.0,94344.0,0.6641219]
[1746521143751,0.34770195,94345.0,94344.0,0.6641219]
[1746521143952,0.41326195,94345.0,94344.0,0.6641219]
[1746521147271,0.06611465,94354.0,94344.0,0.6641219]
[1746521147272,0.0015,94380.0,94344.0,0.8121]
[1746521147459,0.0015,94380.0,94355.0,0.3608]
[1746521147766,0.0529868,94378.0,94375.0,0.3608]
[1746521147971,0.2649368,94378.0,94377.0,0.2119455]
[1746521148471,0.21195,94376.0,94375.0,0.3608]
[1746521148673,0.21195,94376.0,94375.0,0.5727523]
[1746521149463,0.27751,94376.0,94375.0,0.5727523]
[1746521152374,0.37751,94376.0,94375.0,0.5727523]
[1746521153573,0.31195,94376.0,94375.0,0.9227523]
[1746521153779,0.31195,94376.0,94375.0,0.7108]
[1746521153780,0.37751,94376.0,94375.0,0.7108]
[1746521154870,0.37751,94376.0,94375.0,0.3608]
[1746521156178,0.49551,94376.0,94375.0,0.3608]
[1746521157080,0.49651,94376.0,94375.0,0.3608]
[1746521158882,0.49651,94376.0,94370.0,0.297553]
[1746521158883,0.052991,94370.0,94364.0,0.2119754]
[1746521159078,0.052991,94370.0,94358.0,0.3608]
[1746521159079,0.2119882,94359.0,94358.0,0.3608]
[1746521159274,0.2119882,94359.0,94358.0,0.5727905]
[1746521160075,0.2119882,94359.0,94358.0,0.3608]
[1746521160477,0.2109882,94359.0,94358.0,0.3608]
[1746521161283,0.2109882,94359.0,94358.0,0.3618]
[1746521162073,0.2109882,94359.0,94358.0,0.3608]
[1746521163075,0.4289882,94359.0,94358.0,0.3608]
[1746521164078,0.4299882,94359.0,94358.0,0.3608]
[1746521164779,0.4309882,94359.0,94358.0,0.3608]
[1746521164980,0.4965482,94359.0,94358.0,0.3608]
[1746521166182,0.3785482,94359.0,94358.0,0.3608]
[1746521167597,0.4104482,94359.0,94358.0,0.3608]
[1746521172597,0.3448882,94359.0,94358.0,0.3608]
[1746521172892,0.4104082,94359.0,94358.0,0.3608]
[1746521175598,0.4413082,94359.0,94358.0,0.3608]
[1746521176895,0.3120107,94349.0,94348.0,0.3608]
[1746521177297,0.4055107,94349.0,94348.0,0.3608]
[1746521177989,0.3055107,94349.0,94348.0,0.3608]
[1746521179701,0.3065107,94349.0,94348.0,0.3608]
[1746521180103,0.2120129,94348.0,94347.0,0.0321]
[1746521180492,0.2120129,94348.0,94347.0,0.2441152]
[1746521180493,0.2422129,94348.0,94347.0,0.2441152]
[1746521181890,0.3077729,94348.0,94347.0,0.2441152]
[1746521182401,0.3087729,94348.0,94347.0,0.3621152]
[1746521183107,0.3087729,94348.0,94347.0,0.2441152]
[1746521184011,0.2785729,94348.0,94347.0,0.2120152]
[1746521188099,0.2120174,94346.0,94345.0,0.5728181]
[1746521189300,0.2120174,94346.0,94345.0,0.6908181]
[1746521191305,0.2120174,94346.0,94345.0,0.3300181]
[1746521191604,0.2120174,94346.0,94345.0,0.6908181]
[1746521192798,0.3120174,94346.0,94345.0,0.4788]
[1746521193198,0.3120174,94346.0,94345.0,0.3608]
[1746521193908,0.3130174,94346.0,94345.0,0.3608]
[1746521202515,0.3461174,94346.0,94345.0,0.3608]
[1746521202704,0.3781174,94346.0,94345.0,0.3608]
[1746521206716,0.4436374,94346.0,94345.0,0.3608]
[1746521236942,0.2120242,94343.0,94342.0,0.0315]
[1746521237126,0.2120242,94343.0,94342.0,0.3923]
[1746521238445,0.2130242,94343.0,94342.0,0.3923]
[1746521239136,0.2451242,94343.0,94342.0,0.3923]
[1746521240546,0.3105642,94343.0,94342.0,0.3923]
[1746521241948,0.3105642,94343.0,94342.0,0.0315]
[1746521242144,0.3105642,94343.0,94342.0,0.3923]
[1746521242951,0.2451242,94343.0,94342.0,0.3923]
[1746521243148,0.3105642,94343.0,94342.0,0.3923]
[1746521243745,0.3105642,94343.0,94342.0,0.0315]
[1746521243943,0.3434642,94343.0,94342.0,0.3923]
[1746521244545,0.3756642,94343.0,94342.0,0.3923]
[1746521244850,0.3756642,94343.0,94342.0,0.3608]
[1746521250854,0.3756642,94343.0,94342.0,0.3908]
[1746521256157,0.3756642,94343.0,94342.0,0.5088]
[1746521257265,0.3756642,94343.0,94342.0,0.3908]
[1746521265273,0.3756242,94343.0,94342.0,0.3908]
[1746521271458,0.2451242,94343.0,94342.0,0.6028264]
[1746521271663,0.3105242,94343.0,94342.0,0.6028264]
[1746521272068,0.3105242,94343.0,94342.0,0.7208264]
[1746521272273,0.3105242,94343.0,94342.0,0.7540264]
[1746521287191,0.3105242,94343.0,94342.0,0.3932264]
[1746521287388,0.3105242,94343.0,94342.0,0.7540264]
[1746521290795,0.3418242,94343.0,94342.0,0.7540264]
[1746521291998,0.3418242,94343.0,94342.0,0.7208264]
[1746521293397,0.3418242,94343.0,94342.0,0.5088]
[1746521293599,0.3418242,94343.0,94342.0,0.7208264]
[1746521302799,0.2764242,94343.0,94342.0,0.8268224]
[1746521303005,0.0331,94343.0,94342.0,0.8580224]
[1746521304101,0.001,94343.0,94342.0,0.8580224]
[1746521304402,0.0309,94347.0,94346.0,0.2120174]
[1746521304899,0.0309,94347.0,94346.0,0.3180094]
[1746521305203,0.0309,94347.0,94346.0,0.4981094]
[1746521305703,0.0329,94347.0,94346.0,0.4981094]
[1746521306106,0.0329,94347.0,94346.0,0.3921174]
[1746521313510,0.0329,94347.0,94346.0,1.1137174]
[1746521318911,0.2449152,94347.0,94346.0,1.1137174]
[1746521319106,0.2449152,94347.0,94346.0,1.0825174]
[1746521319608,0.2753152,94347.0,94346.0,1.0825174]
[1746521320015,0.2753152,94347.0,94346.0,0.4788]
[1746521320311,0.2753152,94347.0,94346.0,0.3608]
[1746521321212,0.3933152,94347.0,94346.0,0.3608]
[1746521321819,0.3933152,94347.0,94346.0,0.5728174]
[1746521325314,0.2753152,94347.0,94346.0,0.5728174]
[1746521326118,0.3933152,94347.0,94346.0,0.5728174]
[1746521327219,0.3933152,94347.0,94346.0,0.3608]
[1746521328320,0.2753152,94347.0,94346.0,0.3608]
[1746521330024,0.2120174,94346.0,94345.0,0.2120187]
[1746521330322,0.2432174,94346.0,94345.0,0.2120187]
[1746521330519,0.2734174,94346.0,94345.0,0.2120187]
[1746521331017,0.2744174,94346.0,94345.0,0.2120187]
[1746521333927,0.3396574,94346.0,94345.0,0.2120187]
[1746521334818,0.3396574,94346.0,94345.0,0.5728187]
[1746521335623,0.3396574,94346.0,94345.0,0.5728197]
[1746521346634,0.3396574,94346.0,94345.0,0.6051197]
[1746521350334,0.3396574,94346.0,94345.0,0.2443197]
[1746521350534,0.3396574,94346.0,94345.0,0.6051197]
[1746521350841,0.3396574,94346.0,94345.0,0.2443197]
[1746521351138,0.3396574,94346.0,94345.0,0.6051197]
[1746521354641,0.3396574,94346.0,94345.0,0.3931]
[1746521355540,0.3396574,94346.0,94345.0,0.6051197]
[1746521356941,0.3396574,94346.0,94345.0,0.3931]
[1746521357335,0.3396574,94346.0,94345.0,0.6051197]
[1746521358043,0.3396574,94346.0,94345.0,0.5728197]
[1746521358642,0.3396574,94346.0,94345.0,0.3608]
[1746521359043,0.3396574,94346.0,94345.0,0.5728197]
[1746521361543,0.2744174,94346.0,94345.0,0.5728197]
[1746521361744,0.3395774,94346.0,94345.0,0.5728197]
[1746521369847,0.3395774,94346.0,94345.0,0.2120197]
[1746521370147,0.3395774,94346.0,94345.0,0.5728197]
[1746521370542,0.3395774,94346.0,94345.0,0.3608]
[1746521370743,0.3120376,94337.0,94336.0,0.3608]
[1746521371051,0.2120579,94328.0,94326.0,0.3608]
[1746521371246,0.2772179,94328.0,94326.0,0.3608]
[1746521371846,0.3414179,94328.0,94326.0,0.3608]
[1746521373246,0.3404179,94328.0,94326.0,0.3608]
[1746521387960,0.3715179,94328.0,94326.0,0.3608]
[1746521389054,0.3715179,94328.0,94325.0,0.00106016]
[1746521389358,0.3715179,94328.0,94325.0,0.36186016]
[1746521390857,0.3715179,94328.0,94325.0,0.57392366]
[1746521391062,0.3715179,94328.0,94326.0,0.2120616]
[1746521391361,0.3715179,94328.0,94326.0,0.2421616]
[1746521391861,0.3715179,94328.0,94327.0,0.0327902]
[1746521402970,0.3715179,94328.0,94327.0,0.3935902]
[1746521404269,0.3715179,94328.0,94327.0,0.3623902]
[1746521413974,0.3715179,94328.0,94327.0,0.3943902]
[1746521421779,0.3063579,94328.0,94327.0,0.3943902]
[1746521421982,0.3714379,94328.0,94327.0,0.3943902]
[1746521440109,0.3714379,94328.0,94327.0,0.6064503]
[1746521440307,0.3714379,94328.0,94327.0,0.6370503]
[1746521440609,0.3714379,94328.0,94327.0,0.4249902]
[1746521441609,0.3714379,94328.0,94327.0,0.6064503]
[1746521441610,0.09648,94328.0,94327.0,0.6064503]
[1746521442110,0.09648,94328.0,94327.0,0.7244503]